bitfinex/quotes_SOLUSD_20250819
["timestamp","ask_amount","ask_price","bid_price","bid_amount"]
[1755620204383,6.27692599,178.67,178.65,11.24528476]
[1755620204561,0.68,178.66,178.65,11.24528476]
[1755620205168,0.68,178.68,178.65,11.24528476]
[1755620205357,0.68,178.67,178.65,11.24528476]
[1755620206066,40.8,178.69,178.66,11.24528476]
[1755620206277,0.68,178.72,178.68,11.24528476]
[1755620206460,0.68,178.72,178.71,11.24528476]
[1755620207679,0.68,178.72,178.64,24.84087877]
[1755620207680,0.68,178.72,178.68,11.24528476]
[1755620207986,0.68,178.72,178.67,37.24528476]
[1755620208158,0.68,178.72,178.68,11.24528476]
[1755620208358,11.24528476,178.73,178.68,11.24528476]
[1755620208359,0.68,178.71,178.68,11.24528476]
[1755620208856,0.68,178.71,178.69,11.24528476]
[1755620209082,5.59503161,178.73,178.69,11.24528476]
[1755620209395,6.27503161,178.73,178.69,11.24528476]
[1755620209698,6.27503161,178.73,178.68,11.24528476]
[1755620209699,0.68,178.72,178.68,11.24528476]
[1755620209893,11.92528476,178.72,178.67,11.24528476]
[1755620210194,0.68,178.71,178.67,11.24528476]
[1755620210369,0.68,178.7,178.67,11.24528476]
[1755620210576,0.68,178.69,178.67,11.24528476]
[1755620211361,5.59629923,178.69,178.63,41.4]
[1755620211600,0.68,178.68,178.61,14.25559401]
[1755620211797,0.68,178.68,178.64,37.24528476]
[1755620212105,0.68,178.67,178.66,26.0]
[1755620212310,0.68,178.67,178.63,11.24528476]
[1755620212486,11.24528476,178.68,178.63,37.24528476]
[1755620212665,11.24528476,178.68,178.65,26.0]
[1755620212865,0.68,178.68,178.65,26.0]
[1755620213065,46.99604504,178.7,178.66,11.24528476]
[1755620213903,0.68,178.69,178.65,26.0]
[1755620214068,1.24154537,178.69,178.62,11.24528476]
[1755620214271,0.68,178.68,178.65,11.24528476]
[1755620214501,46.34604504,178.7,178.65,11.24528476]
[1755620214700,0.68,178.68,178.64,11.24528476]
[1755620214870,0.68,178.67,178.64,11.24528476]
[1755620215476,0.68,178.66,178.63,11.24528476]
[1755620215666,0.68,178.65,178.62,37.24528476]
[1755620215866,11.24528476,178.67,178.62,26.0]
[1755620215867,0.68,178.64,178.62,26.0]
[1755620216585,0.68,178.63,178.59,11.24528476]
[1755620216780,0.68,178.65,178.6,37.24528476]
[1755620216966,0.68,178.65,178.61,11.24528476]
[1755620217166,0.68,178.68,178.64,11.24528476]
[1755620217366,0.68,178.67,178.63,11.24528476]
[1755620217568,6.27722377,178.66,178.62,11.24528476]
[1755620217784,0.68,178.65,178.6,37.24528476]
[1755620217983,6.27722377,178.66,178.62,11.24528476]
[1755620218162,5.59699312,178.67,178.62,0.66]
[1755620218597,0.68,178.66,178.62,11.24528476]
[1755620218772,0.68,178.65,178.62,11.24528476]
[1755620219271,16.84227788,178.67,178.62,11.24528476]
[1755620219272,17.52227788,178.67,178.62,11.24528476]
[1755620219471,0.56154537,178.69,178.61,11.24528476]
[1755620219472,5.59753708,178.65,178.61,11.24528476]
[1755620219672,0.68,178.64,178.6,37.24528476]
[1755620220090,5.59753708,178.65,178.61,11.24528476]
[1755620220308,6.27753708,178.65,178.6,37.90528476]
[1755620220503,0.68,178.64,178.6,37.24528476]
[1755620220703,0.68,178.63,178.6,26.0]
[1755620220888,5.59728823,178.66,178.62,11.24528476]
[1755620221085,5.59728823,178.66,178.62,11.90528476]
[1755620221408,6.27728823,178.66,178.62,11.24528476]
[1755620221784,6.27728823,178.66,178.62,11.90528476]
[1755620222603,5.5969105,178.67,178.62,11.90528476]
[1755620222793,6.2769105,178.67,178.62,11.90528476]
[1755620223000,5.59665103,178.68,178.63,11.93528476]
[1755620223309,46.27665103,178.68,178.64,11.93528476]
[1755620223501,46.98665103,178.68,178.64,11.93528476]
[1755620224404,46.98665103,178.68,178.64,0.69]
[1755620224611,0.71,178.67,178.63,11.24528476]
[1755620225336,0.71,178.67,178.61,0.69]
[1755620225337,0.71,178.66,178.6,26.69]
[1755620225487,0.71,178.66,178.62,11.24528476]
[1755620225681,46.27665103,178.68,178.63,11.24528476]
[1755620226009,46.27665103,178.68,178.63,11.93528476]
[1755620226181,46.98665103,178.68,178.63,11.93528476]
[1755620226604,46.98665103,178.68,178.6,26.0]
[1755620226605,6.30720439,178.67,178.62,11.24528476]
[1755620226807,11.95528476,178.66,178.6,26.0]
[1755620227007,11.95528476,178.66,178.6,37.24528476]
[1755620227230,11.95528476,178.65,178.58,0.69]
[1755620227519,11.95528476,178.65,178.59,37.24528476]
[1755620228325,11.24528476,178.61,178.56,0.69]
[1755620228736,46.25877987,178.62,178.59,26.0]
[1755620229409,46.96877987,178.62,178.59,26.0]
[1755620229611,11.95528476,178.61,178.56,37.24528476]
[1755620229819,0.71,178.6,178.56,37.24528476]
[1755620229988,11.24528476,178.59,178.55,0.06]
[1755620230189,11.24528476,178.57,178.55,0.06]
[1755620230516,11.24528476,178.56,178.55,0.06]
[1755620230819,17.55564318,178.56,178.55,0.06]
[1755620231519,46.24012208,178.57,178.55,0.06]
[1755620232210,11.95528476,178.56,178.55,0.06]
[1755620232790,17.55564318,178.56,178.55,0.06]
[1755620233031,5.60035842,178.56,178.55,0.06]
[1755620233193,6.31035842,178.56,178.55,0.06]
[1755620233593,17.55564318,178.56,178.55,0.06]
[1755620233895,17.55564318,178.56,178.46,11.24528476]
[1755620234102,11.24528476,178.54,178.45,11.24528476]
[1755620234508,11.95528476,178.54,178.46,11.24528476]
[1755620234928,17.55627053,178.54,178.47,11.93528476]
[1755620235226,17.55627053,178.54,178.45,37.24528476]
[1755620235426,17.55627053,178.54,178.46,11.93528476]
[1755620235904,17.55627053,178.54,178.47,11.93528476]
[1755620236319,6.31098577,178.54,178.47,11.93528476]
[1755620236631,17.55627053,178.54,178.47,11.93528476]
[1755620237406,58.21627053,178.54,178.47,11.93528476]
[1755620237607,58.21627053,178.54,178.48,11.93528476]
[1755620239141,58.21627053,178.54,178.47,5.56728542]
[1755620239634,58.21627053,178.54,178.47,16.81257018]
[1755620239935,58.21627053,178.54,178.47,17.56257018]
[1755620240096,58.21627053,178.54,178.49,0.06]
[1755620240300,72.21873496,178.54,178.49,0.06]
[1755620240519,11.24528476,178.5,178.49,0.06]
[1755620240744,51.90528476,178.5,178.49,0.06]
[1755620240913,52.61528476,178.5,178.49,0.06]
[1755620241642,71.81311966,178.5,178.47,0.06]
[1755620241836,11.24528476,178.48,178.47,0.06]
[1755620242444,11.24528476,178.43,178.39,0.06]
[1755620242607,11.24528476,178.4,178.39,0.06]
[1755620242808,41.37,178.4,178.39,0.06]
[1755620243043,52.61528476,178.4,178.39,0.06]
[1755620243207,40.66,178.4,178.39,0.06]
[1755620243528,51.90528476,178.4,178.39,0.06]
[1755620243707,57.51066592,178.4,178.39,0.06]
[1755620244220,46.26538116,178.4,178.39,0.06]
[1755620246031,40.66,178.4,178.39,11.99528476]
[1755620246237,5.60501378,178.42,178.39,11.99528476]
[1755620246238,46.26501378,178.42,178.39,0.75]
[1755620246437,46.26501378,178.42,178.4,0.69]
[1755620246614,40.66,178.42,178.4,0.69]
[1755620247212,40.66,178.42,178.41,0.69]
[1755620247626,40.66,178.44,178.41,11.93528476]
[1755620247859,46.26423961,178.44,178.41,11.93528476]
[1755620248020,57.50952437,178.44,178.39,0.75]
[1755620248213,57.50952437,178.44,178.4,0.69]
[1755620248729,40.66,178.44,178.41,11.93528476]
[1755620248911,40.66,178.44,178.41,11.24528476]
[1755620249109,40.66,178.44,178.42,0.69]
[1755620249312,40.66,178.44,178.42,11.93528476]
[1755620249512,40.66,178.44,178.42,0.69]
[1755620249949,40.66,178.44,178.4,11.93528476]
[1755620250239,40.66,178.44,178.41,11.93528476]
[1755620250420,40.66,178.44,178.41,11.24528476]
[1755620250615,40.66,178.44,178.43,11.24528476]
[1755620250821,40.66,178.44,178.43,11.93528476]
[1755620251117,0.71,178.44,178.39,0.06]
[1755620251322,11.24528476,178.42,178.39,0.06]
[1755620251535,52.63528476,178.42,178.39,0.06]
[1755620251723,11.24528476,178.4,178.39,0.06]
[1755620251925,57.53066592,178.4,178.39,0.06]
[1755620252115,40.68,178.4,178.39,0.06]
[1755620252735,46.28538116,178.4,178.39,0.06]
[1755620252948,58.24066592,178.4,178.39,0.06]
[1755620255845,71.83625993,178.4,178.37,0.2]
[1755620256141,11.24528476,178.38,178.37,0.2]
[1755620256315,51.92528476,178.38,178.37,0.2]
[1755620256519,52.61528476,178.38,178.37,0.2]
[1755620256721,52.61528476,178.38,178.37,1e-08]
[1755620258020,71.81688841,178.38,178.37,1e-08]
[1755620259141,60.57160365,178.38,178.37,1e-08]
[1755620259339,71.81688841,178.38,178.37,1e-08]
[1755620259932,17.5412944,178.38,178.37,1e-08]
[1755620260234,58.2412944,178.38,178.37,1e-08]
[1755620260434,6.16728572,178.39,178.37,1e-08]
[1755620260629,16.85003759,178.42,178.37,11.93528477]
[1755620260830,40.7,178.41,178.38,0.69]
[1755620261037,40.7,178.41,178.39,0.69]
[1755620261253,40.7,178.41,178.37,1e-08]
[1755620261464,11.24528476,178.38,178.37,1e-08]
[1755620261759,51.94528476,178.38,178.37,1e-08]
[1755620261931,0.56154537,178.42,178.37,0.69000001]
[1755620262134,40.7,178.41,178.37,0.69000001]
[1755620262351,46.3053554,178.41,178.37,0.69000001]
[1755620262566,57.55064016,178.41,178.37,0.69000001]
[1755620262734,46.3053554,178.41,178.38,0.69]
[1755620262942,40.7,178.41,178.38,0.69]
[1755620263142,46.30508957,178.41,178.37,1e-08]
[1755620263331,11.24528476,178.4,178.37,1e-08]
[1755620263532,40.68,178.39,178.37,1e-08]
[1755620264044,40.68,178.39,178.38,0.69]
[1755620264247,40.68,178.39,178.37,1e-08]
[1755620264671,58.09252973,178.39,178.37,1e-08]
[1755620264964,11.93528476,178.38,178.37,1e-08]
[1755620267259,17.5412944,178.38,178.37,1e-08]
[1755620267968,6.16682947,178.41,178.37,1e-08]
[1755620268138,40.7,178.4,178.37,1e-08]
[1755620268344,51.94528476,178.4,178.37,1e-08]
[1755620268652,11.80683013,178.39,178.37,1e-08]
[1755620268951,40.7,178.38,178.37,1e-08]
[1755620269255,40.7,178.38,178.37,11.93528477]
[1755620270033,11.80683013,178.44,178.37,11.93528477]
[1755620270034,40.7,178.4,178.37,11.93528477]
[1755620270258,40.7,178.4,178.39,11.24528476]
[1755620270443,40.7,178.4,178.39,11.93528476]
[1755620271460,40.7,178.4,178.39,0.69]
[1755620271836,40.7,178.4,178.37,1e-08]
[1755620272169,12.49683013,178.39,178.37,1e-08]
[1755620272336,40.7,178.38,178.37,1e-08]
[1755620273543,41.39,178.38,178.37,1e-08]
[1755620273749,40.7,178.38,178.37,1e-08]
[1755620274072,46.86755501,178.38,178.37,1e-08]
[1755620274646,41.26154537,178.38,178.37,1e-08]
[1755620274846,40.7,178.38,178.37,1e-08]
[1755620275146,40.7,178.38,178.37,0.69000001]
[1755620275379,40.7,178.38,178.37,11.93528477]
[1755620275940,40.7,178.4,178.37,11.93528477]
[1755620276139,40.7,178.4,178.39,11.24528476]
[1755620276438,40.7,178.4,178.38,11.93528476]
[1755620276740,40.7,178.4,178.38,11.24528476]
[1755620277058,40.7,178.4,178.38,0.69]
[1755620277467,40.7,178.4,178.38,11.93528476]
[1755620279449,0.03,178.45,178.39,11.93528476]
[1755620279450,40.7,178.42,178.39,11.93528476]
[1755620279651,40.7,178.42,178.4,0.69]
[1755620279946,40.7,178.42,178.41,11.24528476]
[1755620280146,0.03,178.45,178.41,11.93528476]
[1755620280358,41.39,178.44,178.37,0.69000001]
[1755620280658,11.24528476,178.41,178.37,1e-08]
[1755620280849,40.68,178.4,178.37,11.24528477]
[1755620281291,40.68,178.4,178.37,1e-08]
[1755620281452,40.68,178.4,178.37,11.93528477]
[1755620281652,40.68,178.4,178.37,0.69000001]
[1755620281852,40.68,178.4,178.38,11.93528476]
[1755620282052,40.71,178.4,178.38,11.93528476]
[1755620282286,0.03,178.4,178.39,11.24528476]
[1755620282483,0.03,178.4,178.39,11.93528476]
[1755620283078,0.03,178.4,178.39,11.24528476]
[1755620283390,0.03,178.4,178.39,37.93528476]
[1755620283588,0.03,178.4,178.39,43.54098014]
[1755620283778,0.03,178.4,178.39,31.13657415]
[1755620284272,0.03,178.4,178.39,11.93528476]
[1755620284469,0.03,178.4,178.39,37.93528476]
[1755620284643,0.03,178.4,178.39,11.93528476]
[1755620284962,0.03,178.4,178.39,37.24528476]
[1755620285977,0.7,178.4,178.37,11.24528477]
[1755620286177,41.38,178.4,178.37,1e-08]
[1755620286493,40.71,178.4,178.37,1e-08]
[1755620286782,0.67,178.39,178.37,1e-08]
[1755620286980,11.91528476,178.39,178.37,1e-08]
[1755620287190,0.67,178.38,178.37,1e-08]
[1755620288179,17.5212944,178.38,178.37,1e-08]
[1755620288546,0.67,178.38,178.37,1e-08]
[1755620288786,18.08283977,178.38,178.37,1e-08]
[1755620289563,1.23154537,178.38,178.37,1e-08]
[1755620290160,0.56154537,178.39,178.37,1e-08]
[1755620290368,0.67,178.38,178.37,1e-08]
[1755620290669,11.91528476,178.38,178.37,1e-08]
[1755620290867,0.67,178.38,178.37,1e-08]
[1755620291075,52.59528476,178.38,178.37,1e-08]
[1755620291657,41.35,178.38,178.37,1e-08]
[1755620291857,41.91154537,178.38,178.37,1e-08]
[1755620292053,58.76283977,178.38,178.37,1e-08]
[1755620292256,53.15683013,178.38,178.37,1e-08]
[1755620292493,41.91154537,178.38,178.37,1e-08]
[1755620293061,53.15683013,178.38,178.37,1e-08]
[1755620293291,58.76283977,178.38,178.37,1e-08]
[1755620293509,41.91154537,178.38,178.37,1e-08]
[1755620294776,41.24154537,178.38,178.37,1e-08]
[1755620294975,41.91154537,178.38,178.37,1e-08]
[1755620297074,49.1242822,178.38,178.37,1e-08]
[1755620297272,41.91154537,178.38,178.37,1e-08]
[1755620297505,54.73029184,178.38,178.37,1e-08]
[1755620298288,49.1242822,178.38,178.37,1e-08]
[1755620298494,41.91154537,178.38,178.37,1e-08]
[1755620298889,54.73029184,178.38,178.37,1e-08]
[1755620299101,49.1242822,178.38,178.37,1e-08]
[1755620299608,54.73029184,178.38,178.37,1e-08]
[1755620300108,49.1242822,178.38,178.37,1e-08]
[1755620300278,41.91154537,178.38,178.37,1e-08]
[1755620300479,41.35,178.38,178.37,1e-08]
[1755620300682,40.68,178.38,178.37,0.69000001]
[1755620300891,48.56273683,178.38,178.37,1e-08]
[1755620301092,144.59559401,178.37,178.33,0.06]
[1755620301292,7.21273683,178.34,178.32,0.06]
[1755620301472,48.4942822,178.33,178.32,0.06]
[1755620301684,49.1642822,178.33,178.32,0.06]
[1755620301885,66.47029232,178.33,178.32,0.06]
[1755620302280,55.54713938,178.33,178.32,0.06]
[1755620302484,54.77186365,178.33,178.32,0.06]
[1755620302716,68.36745766,178.33,178.32,0.06]
[1755620302887,39.59559401,178.32,178.31,0.06]
[1755620303095,58.3993836,178.32,178.3,0.06]
[1755620303423,49.2242822,178.31,178.3,0.06]
[1755620303588,62.81987621,178.31,178.3,0.06]
[1755620303988,1.23154537,178.31,178.3,0.06]
[1755620304216,8.4442822,178.31,178.3,0.06]
[1755620304387,49.2242822,178.31,178.3,0.06]
[1755620304589,54.83249262,178.31,178.3,0.06]
[1755620304898,54.83249262,178.31,178.3,7.96273683]
[1755620304899,40.8,178.31,178.3,7.96273683]
[1755620305200,0.56154537,178.36,178.3,7.96273683]
[1755620305387,40.78,178.35,178.31,7.21273683]
[1755620305588,131.0,178.37,178.34,7.21273683]
[1755620305821,40.78,178.36,178.34,7.21273683]
[1755620305987,7.7742822,178.35,178.3,0.75]
[1755620306184,47.99273683,178.34,178.3,0.75]
[1755620306408,41.45,178.34,178.3,7.27273683]
[1755620306623,5.60758145,178.33,178.3,7.27273683]
[1755620306824,40.78,178.32,178.3,7.27273683]
[1755620306997,40.78,178.32,178.31,7.21273683]
[1755620307501,40.78,178.32,178.3,0.06]
[1755620308021,7.88273683,178.31,178.3,0.06]
[1755620308221,48.5542822,178.32,178.3,0.06]
[1755620308524,40.78,178.32,178.3,0.06]
[1755620308705,8.4442822,178.31,178.3,0.06]
[1755620309296,1.23154537,178.31,178.3,0.06]
[1755620309495,0.56154537,178.31,178.3,0.06]
[1755620310193,46.94962533,178.32,178.3,0.06]
[1755620311825,46.94962533,178.32,178.3,11.28730203]
[1755620311826,40.78,178.32,178.3,11.28730203]
[1755620312141,11.89730203,178.31,178.3,0.06]
[1755620312322,11.22730203,178.31,178.3,0.06]
[1755620312521,47.61945635,178.32,178.3,0.06]
[1755620312698,6.16945635,178.32,178.3,0.06]
[1755620312895,41.34,178.31,178.3,0.75]
[1755620313213,41.34,178.31,178.3,0.06]
[1755620313520,52.56730203,178.31,178.3,0.06]
[1755620313732,41.34,178.31,178.3,0.06]
[1755620314024,53.28730203,178.31,178.3,0.06]
[1755620314729,58.89551245,178.31,178.3,0.06]
[1755620314929,72.49110646,178.31,178.3,0.06]
[1755620315136,72.49110646,178.31,178.3,1e-08]
[1755620315809,75.41873949,178.31,178.3,1e-08]
[1755620316235,75.41873949,178.31,178.28,0.06]
[1755620316236,39.59559401,178.29,178.28,1e-08]
[1755620316396,39.59559401,178.25,178.24,1e-08]
[1755620316596,5.61041292,178.24,178.23,1e-08]
[1755620316805,19.92600693,178.24,178.23,1e-08]
[1755620317016,31.15330896,178.24,178.23,1e-08]
[1755620317436,16.83771495,178.24,178.23,1e-08]
[1755620317918,41.3,178.24,178.23,1e-08]
[1755620318306,53.24730203,178.24,178.23,1e-08]
[1755620318530,41.3,178.24,178.23,1e-08]
[1755620318742,5.61041292,178.24,178.23,1e-08]
[1755620319034,46.91041292,178.24,178.23,1e-08]
[1755620319243,41.32,178.24,178.23,0.66000001]
[1755620319465,40.74323494,178.28,178.23,11.88730204]
[1755620319466,5.60915413,178.28,178.23,11.88730204]
[1755620319609,41.3,178.27,178.26,11.22730203]
[1755620319808,41.3,178.27,178.26,11.88730203]
[1755620320036,41.3,178.27,178.23,11.22730204]
[1755620320250,41.3,178.27,178.23,0.66000001]
[1755620320542,41.3,178.27,178.24,0.66]
[1755620320842,5.60978346,178.26,178.23,1e-08]
[1755620321035,41.3,178.25,178.23,1e-08]
[1755620322349,41.3,178.25,178.24,0.66]
[1755620322648,52.52730203,178.25,178.23,1e-08]
[1755620322846,5.61041292,178.24,178.23,1e-08]
[1755620323348,41.3,178.25,178.23,0.66000001]
[1755620323517,11.22730203,178.28,178.23,0.66000001]
[1755620323723,41.3,178.27,178.26,11.22730203]
[1755620323919,41.28,178.28,178.26,11.88730203]
[1755620324124,41.28,178.28,178.27,11.88730203]
[1755620324555,41.3,178.3,178.27,11.88730203]
[1755620324851,41.3,178.3,178.23,1e-08]
[1755620324852,41.3,178.3,178.29,11.22730203]
[1755620325220,0.03,178.31,178.29,0.66]
[1755620325525,0.03,178.31,178.3,11.88730203]
[1755620325717,0.03,178.35,178.3,11.88730203]
[1755620325925,0.03,178.35,178.34,11.22730203]
[1755620326134,0.03,178.35,178.31,0.66]
[1755620326350,0.03,178.35,178.31,11.88730203]
[1755620326652,0.03,178.35,178.33,11.22730203]
[1755620327658,0.03,178.35,178.34,11.88730203]
[1755620333251,0.03,178.35,178.34,17.49456904]
[1755620333640,0.03,178.35,178.34,11.88730203]
[1755620334064,0.03,178.35,178.34,17.49456904]
[1755620334230,0.03,178.37,178.36,37.22730203]
[1755620334429,0.03,178.39,178.37,39.59559401]
[1755620334650,0.03,178.39,178.38,11.22730203]
[1755620334951,0.03,178.39,178.38,11.88730203]
[1755620335355,0.03,178.39,178.38,17.49331167]
[1755620335851,0.03,178.39,178.38,11.88730203]
[1755620336055,0.03,178.39,178.38,0.66]
[1755620336228,0.03,178.39,178.38,11.22730203]
[1755620336845,0.03,178.39,178.38,11.88730203]
[1755620337326,0.03,178.39,178.38,17.49331167]
[1755620337534,0.03,178.39,178.38,11.88730203]
[1755620340161,0.03,178.39,178.37,26.0]
[1755620340347,0.03,178.39,178.38,11.22730203]
[1755620341048,0.03,178.39,178.38,11.88730203]
[1755620343059,0.03,178.39,178.38,31.08890568]
[1755620343270,0.03,178.42,178.41,26.0]
[1755620343467,0.03,178.44,178.41,50.82289604]
[1755620343774,0.03,178.44,178.43,11.22730203]
[1755620344452,0.03,178.44,178.43,11.92730203]
[1755620345074,0.03,178.44,178.43,11.22730203]
[1755620345961,0.03,178.44,178.41,26.0]
[1755620346160,0.03,178.44,178.43,11.22730203]
[1755620346361,0.03,178.44,178.42,26.0]
[1755620346563,0.03,178.44,178.43,11.22730203]
[1755620348008,0.03,178.44,178.42,26.0]
[1755620348479,0.03,178.44,178.43,26.0]
[1755620348908,0.03,178.44,178.43,26.7]
[1755620349068,0.03,178.44,178.43,37.22730203]
[1755620349586,0.03,178.44,178.43,37.92730203]
[1755620350370,0.03,178.44,178.43,43.53174074]
[1755620351261,0.03,178.44,178.43,37.92730203]
[1755620351585,0.03,178.44,178.43,11.22730203]
[1755620353065,0.03,178.44,178.43,37.22730203]
[1755620353885,0.03,178.44,178.43,43.53174074]
[1755620354191,0.03,178.47,178.43,31.12733475]
[1755620354418,0.03,178.47,178.46,37.22730203]
[1755620354622,0.03,178.47,178.46,50.82289604]
[1755620354829,0.03,178.48,178.47,13.59559401]
[1755620355003,0.03,178.48,178.47,65.76289604]
[1755620355207,0.03,178.48,178.47,66.46289604]
[1755620355406,0.03,178.5,178.49,39.59559401]
[1755620355617,0.03,178.55,178.5,13.59559401]
[1755620355796,0.03,178.55,178.52,39.59559401]
[1755620356000,0.03,178.55,178.52,50.82289604]
[1755620356203,0.03,178.55,178.54,24.82289604]
[1755620356733,0.03,178.55,178.54,25.52289604]
[1755620357035,0.03,178.55,178.54,11.22730203]
[1755620357395,0.7,178.55,178.54,26.0]
[1755620357595,0.7,178.55,178.54,37.22730203]
[1755620359221,0.03,178.55,178.54,37.22730203]
[1755620359626,0.7,178.55,178.54,37.22730203]
[1755620359928,0.7,178.55,178.5,11.22730203]
[1755620360225,0.67,178.54,178.5,11.22730203]
[1755620360436,0.67,178.54,178.52,11.22730203]
[1755620361117,0.03,178.55,178.53,11.22730203]
[1755620361317,0.03,178.55,178.51,26.0]
[1755620361524,0.67,178.54,178.53,26.0]
[1755620361811,0.67,178.54,178.51,11.22730203]
[1755620362211,0.67,178.53,178.51,11.22730203]
[1755620362398,5.63075828,178.55,178.5,37.22730203]
[1755620362399,0.67,178.52,178.5,37.22730203]
[1755620362604,0.67,178.54,178.5,37.22730203]
[1755620362829,0.67,178.53,178.5,37.22730203]
[1755620363036,16.85806031,178.55,178.5,26.0]
[1755620363214,0.67,178.52,178.5,26.0]
[1755620363416,0.67,178.51,178.47,11.22730203]
[1755620363642,0.67,178.5,178.46,11.22730203]
[1755620363841,0.67,178.5,178.47,0.06]
[1755620363842,0.67,178.49,178.47,0.06]
[1755620364733,0.67,178.51,178.47,11.28730203]
[1755620365101,0.67,178.51,178.48,11.22730203]
[1755620365307,0.67,178.51,178.49,11.22730203]
[1755620365716,5.60136761,178.53,178.5,11.22730203]
[1755620366009,5.60136761,178.53,178.47,0.06]
[1755620366010,5.60136761,178.53,178.49,11.22730203]
[1755620366229,40.9,178.54,178.51,11.22730203]
[1755620366509,41.57,178.54,178.51,11.22730203]
[1755620366912,11.22730203,178.52,178.47,0.06]
[1755620367119,11.22730203,178.49,178.47,0.06]
[1755620367525,0.67,178.48,178.47,0.06]
[1755620367838,13.59559401,178.47,178.4,4.60822701]
[1755620368015,1.23154537,178.46,178.38,0.06]
[1755620368208,0.56154537,178.46,178.4,26.0]
[1755620368407,11.22730203,178.44,178.4,26.0]
[1755620368615,52.77730203,178.46,178.4,37.22730203]
[1755620369142,0.67,178.46,178.42,11.22730203]
[1755620369510,0.67,178.45,178.42,11.22730203]
[1755620370730,5.60320855,178.47,178.42,11.22730203]
[1755620371042,0.67,178.47,178.43,11.22730203]
[1755620371253,11.22730203,178.44,178.39,11.22730203]
[1755620371537,1.23154537,178.46,178.38,0.06]
[1755620371538,11.89730203,178.43,178.38,0.06]
[1755620371705,11.89730203,178.43,178.39,11.22730203]
[1755620371706,0.67,178.43,178.39,11.22730203]
[1755620371909,0.67,178.42,178.38,11.28730203]
[1755620372926,0.67,178.42,178.39,11.22730203]
[1755620373431,5.60443871,178.43,178.39,11.22730203]
[1755620373646,11.91730203,178.44,178.39,11.22730203]
[1755620373842,6.29420843,178.44,178.4,11.22730203]
[1755620374013,11.91730203,178.43,178.38,37.28730203]
[1755620374214,0.69,178.42,178.38,37.28730203]
[1755620374446,16.83151046,178.44,178.38,37.28730203]
[1755620374745,6.29385977,178.45,178.4,11.22730203]
[1755620374940,41.53,178.44,178.4,11.22730203]
[1755620375444,40.84,178.44,178.42,11.22730203]
[1755620375744,40.84,178.44,178.41,11.22730203]
[1755620375745,41.53,178.44,178.41,11.22730203]
[1755620376235,47.13421905,178.44,178.41,11.22730203]
[1755620376544,0.69,178.43,178.4,11.22730203]
[1755620376726,40.84,178.44,178.41,11.22730203]
[1755620378845,5.60391085,178.45,178.42,11.22730203]
[1755620379074,40.8,178.44,178.42,11.22730203]
[1755620379349,40.8,178.44,178.43,11.22730203]
[1755620381162,131.0,178.48,178.43,11.88730203]
[1755620381365,40.74,178.47,178.44,26.0]
[1755620381518,40.74,178.47,178.46,11.22730203]
[1755620381948,0.03,178.49,178.46,11.88730203]
[1755620382149,0.03,178.49,178.45,26.0]
[1755620382150,0.03,178.49,178.48,11.22730203]
[1755620382950,0.03,178.49,178.48,11.88730203]
[1755620383334,0.03,178.49,178.48,11.22730203]
[1755620383737,0.03,178.49,178.48,11.88730203]
[1755620387554,0.03,178.49,178.48,11.22730203]
[1755620388433,0.03,178.49,178.47,11.22730203]
[1755620388434,0.72,178.49,178.47,11.22730203]
[1755620388758,0.69,178.48,178.46,37.22730203]
[1755620388928,0.69,178.48,178.45,11.22730203]
[1755620389130,0.69,178.47,178.45,11.22730203]
[1755620389846,40.77,178.49,178.46,11.22730203]
[1755620390052,40.77,178.49,178.47,11.22730203]